bitfinex-derivatives/quotes_BTCF0:USTF0_20250501
["timestamp","ask_amount","ask_price","bid_price","bid_amount"]
[1746128801160,0.20624219,96498.0,96497.0,0.22474262]
[1746128801459,0.20624219,96498.0,96497.0,0.01755492]
[1746128801862,0.20624219,96498.0,96497.0,0.002]
[1746128802062,0.23824219,96498.0,96497.0,0.002]
[1746128805260,0.012,96498.0,96497.0,0.002]
[1746128805464,0.2071641,96508.0,96507.0,0.0517913]
[1746128805659,0.258956,96508.0,96507.0,0.2071646]
[1746128805860,0.2071705,96506.0,96505.0,0.2071686]
[1746128806060,0.2071705,96506.0,96505.0,0.2387686]
[1746128806262,0.0517899,96511.0,96510.0,0.2071577]
[1746128807759,0.2589547,96511.0,96510.0,0.2071577]
[1746128808167,0.2649547,96511.0,96510.0,0.2081577]
[1746128808362,0.2719547,96511.0,96510.0,0.002]
[1746128808562,0.3039547,96511.0,96510.0,0.002]
[1746128808970,0.30761482,96511.0,96510.0,0.002]
[1746128810061,0.30761482,96511.0,96510.0,0.0332]
[1746128810866,0.33871482,96511.0,96510.0,0.0332]
[1746128814077,0.33871482,96511.0,96510.0,0.2403598]
[1746128814777,0.33871482,96511.0,96510.0,0.0332]
[1746128815366,0.30761482,96511.0,96510.0,0.0332]
[1746128816067,0.27561482,96511.0,96510.0,0.25576404]
[1746128816263,0.2201648,96511.0,96510.0,0.25576404]
[1746128817171,0.013,96511.0,96510.0,0.25576404]
[1746128817877,0.013,96511.0,96510.0,0.25576048]
[1746128817878,0.2201577,96511.0,96510.0,0.25576048]
[1746128818375,0.013,96511.0,96510.0,0.25576048]
[1746128819379,0.2201577,96511.0,96510.0,0.25576048]
[1746128820977,0.2201577,96511.0,96510.0,0.2403598]
[1746128821176,0.2201577,96511.0,96510.0,0.0964]
[1746128822168,0.2201577,96511.0,96510.0,0.1294]
[1746128822369,0.2201577,96511.0,96510.0,0.3365598]
[1746128826777,0.2201577,96511.0,96510.0,0.002]
[1746128826971,0.2821577,96511.0,96510.0,0.002]
[1746128831984,0.2821577,96511.0,96510.0,0.01735665]
[1746128832979,0.2821577,96511.0,96510.0,0.002]
[1746128849090,0.2821577,96511.0,96510.0,0.01732323]
[1746128850098,0.2821577,96511.0,96510.0,0.002]
[1746128851096,0.2821577,96511.0,96510.0,0.01736337]
[1746128851284,0.2072113,96486.0,96475.0,0.0518082]
[1746128851487,0.5680113,96486.0,96485.0,0.01691812]
[1746128851689,0.2072113,96486.0,96485.0,0.01691812]
[1746128851894,0.5680113,96486.0,96485.0,0.01691812]
[1746128852093,0.5680113,96486.0,96485.0,0.00155421]
[1746128852396,0.5995113,96486.0,96485.0,0.00155421]
[1746128852796,0.6304113,96486.0,96485.0,0.00155421]
[1746128853293,0.6334113,96486.0,96485.0,0.00155421]
[1746128854197,0.63853802,96486.0,96485.0,0.00155421]
[1746128857596,0.57713802,96486.0,96485.0,0.20876771]
[1746128857900,0.57713802,96486.0,96485.0,0.00155421]
[1746128863298,0.57713802,96486.0,96485.0,0.01698014]
[1746128864000,0.57713802,96486.0,96485.0,0.01698005]
[1746128865198,0.57713802,96486.0,96485.0,0.0169612]
[1746128865498,0.57713802,96486.0,96485.0,0.01695844]
[1746128865796,0.57713802,96486.0,96485.0,0.01695894]
[1746128866298,0.57713802,96486.0,96485.0,0.01693492]
[1746128867499,0.57713802,96486.0,96485.0,0.01683196]
[1746128868392,0.57713802,96486.0,96485.0,0.00155421]
[1746128869301,0.57713802,96486.0,96485.0,0.0168297]
[1746128871200,0.57713802,96486.0,96485.0,0.0813297]
[1746128871397,0.57713802,96486.0,96485.0,0.06605421]
[1746128872408,0.57713802,96486.0,96485.0,0.27326771]
[1746128874298,0.3608,96507.0,96499.0,0.2071803]
[1746128874499,0.3608,96507.0,96485.0,0.18509445]
[1746128874500,0.2589713,96505.0,96504.0,0.2071705]
[1746128874696,0.051789,96512.0,96504.0,0.2071705]
[1746128874697,0.0517808,96528.0,96504.0,0.01539624]
[1746128874906,0.3608,96531.0,96514.0,0.2071512]
[1746128874907,0.2086532,96515.0,96514.0,0.2071512]
[1746128875204,0.2086532,96515.0,96514.0,0.22254744]
[1746128875501,0.26644131,96515.0,96514.0,0.2071512]
[1746128875702,0.2908406,96515.0,96514.0,0.2383512]
[1746128876803,0.2958406,96515.0,96514.0,0.2383512]
[1746128877601,0.30182231,96515.0,96514.0,0.2383512]
[1746128877802,0.30582231,96515.0,96514.0,0.2383512]
[1746128878294,0.30582231,96515.0,96514.0,0.24609714]
[1746128880303,0.0105,96515.0,96514.0,0.24609714]
[1746128880804,0.2071266,96528.0,96527.0,0.2071215]
[1746128881595,0.2071266,96528.0,96527.0,0.2394215]
[1746128882001,0.2121266,96528.0,96527.0,0.2404215]
[1746128882200,0.005,96528.0,96527.0,0.2404215]
[1746128883298,0.01,96528.0,96527.0,0.25594755]
[1746128883497,0.01,96528.0,96527.0,0.25594131]
[1746128885107,0.2171212,96528.0,96527.0,0.25594131]
[1746128885308,0.2071212,96528.0,96527.0,0.26194131]
[1746128885605,0.2071212,96528.0,96527.0,0.26202285]
[1746128886209,0.2071212,96528.0,96527.0,0.05490135]
[1746128886907,0.2071212,96528.0,96527.0,0.29392465]
[1746128888105,0.2071212,96528.0,96527.0,0.08680135]
[1746128888498,0.2385212,96528.0,96527.0,0.08680135]
[1746128888706,0.0314,96528.0,96527.0,0.08680135]
[1746128888909,0.0314,96528.0,96527.0,0.0869684]
[1746128889212,0.0314,96528.0,96527.0,0.2940917]
[1746128889905,0.0314,96528.0,96527.0,0.6548917]
[1746128890204,0.0314,96528.0,96527.0,0.5836917]
[1746128890507,0.0639,96528.0,96527.0,0.50030021]
[1746128892308,0.05147902,96528.0,96527.0,0.50030021]
[1746128892514,0.2435008,96536.0,96535.0,0.2071062]
[1746128893107,0.0059962,96536.0,96535.0,0.2071062]
[1746128893306,0.0324,96541.0,96540.0,0.2070954]
[1746128893859,0.03845701,96541.0,96540.0,0.2070954]
[1746128894410,0.04145701,96541.0,96540.0,0.2070954]
[1746128895208,0.04445701,96541.0,96540.0,0.2070954]
[1746128895511,0.04445701,96541.0,96540.0,0.2702154]
[1746128896718,0.25155031,96541.0,96540.0,0.2702154]
[1746128898100,0.04445701,96541.0,96540.0,0.2702154]
[1746128898715,0.04445701,96541.0,96540.0,0.3010154]
[1746128899113,0.25155031,96541.0,96540.0,0.3010154]
[1746128902312,0.23913084,96541.0,96540.0,0.31718659]
[1746128904106,0.23913084,96541.0,96540.0,0.3010154]
[1746128904311,0.23913084,96541.0,96540.0,0.31694019]
[1746128904610,0.21915031,96541.0,96540.0,0.31694019]
[1746128904815,0.20921443,96541.0,96540.0,0.31694019]
[1746128905506,0.00212113,96541.0,96540.0,0.31694019]
[1746128905706,0.00817618,96541.0,96540.0,0.31694019]
[1746128905903,0.20921443,96541.0,96540.0,0.31694019]
[1746128906423,0.20921443,96541.0,96540.0,0.10984479]
[1746128906608,0.20921443,96541.0,96540.0,0.31694019]
[1746128908115,0.21536812,96541.0,96540.0,0.31694019]
[1746128908314,0.24746812,96541.0,96540.0,0.31694019]
[1746128912322,0.23504885,96541.0,96540.0,0.31694019]
[1746128913024,0.23504885,96541.0,96540.0,0.31699079]
[1746128914124,0.23504885,96541.0,96540.0,0.10989539]
[1746128914517,0.23504885,96541.0,96540.0,0.31699079]
[1746128914823,0.23504885,96541.0,96540.0,0.31697546]
[1746128915620,0.23504885,96541.0,96540.0,0.10988006]
[1746128916619,0.23504885,96541.0,96540.0,0.31668187]
[1746128919022,0.23504885,96541.0,96540.0,0.10958647]
[1746128920229,0.23504885,96541.0,96540.0,0.31668187]
[1746128920430,0.23504885,96541.0,96540.0,0.10950905]
[1746128921425,0.23504885,96541.0,96540.0,0.31660445]
[1746128921928,0.23504885,96541.0,96540.0,0.31770679]
[1746128922327,0.23504885,96541.0,96540.0,0.31758773]
[1746128922732,0.23504885,96541.0,96540.0,0.31769248]
[1746128923028,0.23504885,96541.0,96540.0,0.07979708]
[1746128923226,0.2071426,96518.0,96517.0,0.3608]
[1746128923418,0.2071426,96518.0,96517.0,0.42412]
[1746128923623,0.194203,96518.0,96517.0,0.42412]
[1746128923823,0.194203,96518.0,96517.0,0.3608]
[1746128924331,0.225503,96518.0,96517.0,0.3608]
[1746128924527,0.257803,96518.0,96517.0,0.3608]
[1746128924724,0.257803,96518.0,96517.0,0.3648]
[1746128924929,0.257803,96518.0,96517.0,0.3698]
[1746128925732,0.257803,96518.0,96517.0,0.3668]
[1746128926742,0.257803,96518.0,96517.0,0.3628]
[1746128926936,0.257803,96518.0,96517.0,0.3648]
[1746128928729,0.257803,96518.0,96517.0,0.5719448]
[1746128929132,0.257803,96518.0,96517.0,0.3648]
[1746128933143,0.257803,96518.0,96517.0,0.366386]
[1746128934744,0.257803,96518.0,96517.0,0.5735308]
[1746128934940,0.257803,96518.0,96517.0,0.366386]
[1746128935640,0.257803,96518.0,96517.0,0.397386]
[1746128936646,0.257803,96518.0,96517.0,0.6045308]
[1746128938944,0.257803,96518.0,96517.0,0.60472278]
[1746128939243,0.257803,96518.0,96517.0,0.6029448]
[1746128939445,0.257803,96518.0,96517.0,0.60525657]
[1746128939949,0.257803,96518.0,96517.0,0.60725657]
[1746128940547,0.257803,96518.0,96517.0,0.60425657]
[1746128940748,0.257803,96518.0,96517.0,0.60725657]
[1746128941345,0.257803,96518.0,96517.0,0.40037869]
[1746128942549,0.257803,96518.0,96517.0,0.39837869]
[1746128942946,0.257803,96518.0,96517.0,0.39737869]
[1746128944943,0.257803,96518.0,96517.0,0.60452349]
[1746128945438,0.257803,96518.0,96517.0,0.39737869]
[1746128946752,0.257803,96518.0,96517.0,0.60452349]
[1746128947256,0.257803,96518.0,96517.0,0.39737869]
[1746128947448,0.257803,96518.0,96517.0,0.60452349]
[1746128948451,0.257803,96518.0,96517.0,0.39737869]
[1746128948845,0.257803,96518.0,96517.0,0.60452349]
[1746128949263,0.257803,96518.0,96517.0,0.39737869]
[1746128949652,0.257803,96518.0,96517.0,0.36637869]
[1746128953948,0.257803,96518.0,96517.0,0.36437869]
[1746128954149,0.257803,96518.0,96517.0,0.36637869]
[1746128955963,0.257803,96518.0,96517.0,0.36437869]
[1746128956163,0.257803,96518.0,96517.0,0.36637869]
[1746128957257,0.257803,96518.0,96517.0,0.00557869]
[1746128963870,0.226503,96518.0,96517.0,0.00557869]
[1746128964168,0.0323,96518.0,96517.0,0.21272349]
[1746128964367,0.2071383,96520.0,96519.0,0.2071394]
[1746128964771,0.2071345,96522.0,96521.0,0.2071353]
[1746128964964,0.032,96526.0,96519.0,0.082585]
[1746128965159,0.4125758,96537.0,96521.0,0.3608]
[1746128965360,0.2071084,96534.0,96533.0,0.2071092]
[1746128965667,0.0332,96536.0,96533.0,0.2071087]
[1746128965869,0.2389062,96535.0,96534.0,0.0308]
[1746128966169,0.2389062,96535.0,96534.0,0.2694083]
[1746128966365,0.2389062,96535.0,96534.0,0.27198699]
[1746128966668,0.0318,96535.0,96534.0,0.06487869]
[1746128966967,0.2132224,96541.0,96540.0,0.2070954]
[1746128967157,0.0332,96544.0,96541.0,0.0517733]
[1746128967363,0.04444785,96544.0,96543.0,0.207089]
[1746128967769,0.25153475,96544.0,96543.0,0.271389]
[1746128968461,0.25453475,96544.0,96543.0,0.27396769]
[1746128968767,0.25853475,96544.0,96543.0,0.27396769]
[1746128974474,0.22533475,96544.0,96543.0,0.27396769]
[1746128982093,0.0015,96550.0,96549.0,0.2070761]
[1746128982297,0.2085776,96550.0,96549.0,0.2070761]
[1746128982588,0.2085776,96550.0,96549.0,0.27235479]
[1746128982786,0.2405776,96550.0,96549.0,0.27235479]
[1746128983490,0.25155152,96550.0,96549.0,0.27235479]
[1746128983678,0.25155152,96550.0,96549.0,0.06527869]
[1746128983882,0.25855152,96550.0,96549.0,0.06527869]
[1746128984078,0.25855152,96550.0,96549.0,0.00257869]
[1746128984284,0.29095152,96550.0,96549.0,0.00257869]
[1746128988096,0.0085,96550.0,96549.0,0.20965479]
[1746128988392,0.0085,96550.0,96549.0,0.27277479]
[1746128988786,0.0085,96550.0,96549.0,0.36927479]
[1746128989190,0.20335712,96558.0,96557.0,0.207059]
[1746128989390,0.20335712,96558.0,96557.0,0.567859]
[1746128989695,0.2371547,96559.0,96558.0,0.2070568]
[1746128990092,0.0517562,96573.0,96565.0,0.2070418]
[1746128990398,0.2070328,96570.0,96569.0,0.2070324]
[1746128990696,0.2070328,96570.0,96569.0,0.20961109]
[1746128992596,0.2090328,96570.0,96569.0,0.20961109]
[1746128992793,0.003,96570.0,96569.0,0.20961109]
[1746128993695,0.002,96570.0,96569.0,0.21161109]
[1746128994198,0.0302,96571.0,96570.0,0.2070311]
[1746128994597,0.0302,96571.0,96570.0,0.20960979]
[1746128995903,0.0302,96571.0,96570.0,0.21060979]
[1746128996200,0.001,96576.0,96575.0,0.2070204]
[1746128996594,0.001,96576.0,96575.0,0.20959909]
[1746128997392,0.002,96576.0,96575.0,0.20959909]
[1746128999702,0.0337,96576.0,96575.0,0.20959909]
[1746129000299,0.0517493,96586.0,96575.0,0.20959909]
[1746129000300,0.1,96600.0,96579.0,0.0517528]
[1746129000502,0.3608,96597.0,96575.0,0.11569967]
[1746129000811,0.20443951,96576.0,96575.0,0.11312098]
[1746129002006,0.20443951,96576.0,96575.0,0.11412098]
[1746129002211,0.20443951,96576.0,96575.0,0.32114138]
[1746129002699,0.0322,96577.0,96576.0,0.2070182]
[1746129002911,0.2392161,96577.0,96576.0,0.2070182]
[1746129003499,0.2070022,96584.0,96583.0,0.2070019]
[1746129003701,0.207002,96584.0,96583.0,0.2070016]
[1746129003901,0.2070097,96582.0,96581.0,0.2070073]
[1746129004103,0.2070029,96584.0,96583.0,0.2070012]
[1746129004309,0.2399029,96584.0,96583.0,0.2070012]
[1746129005607,0.2727029,96584.0,96583.0,0.2070012]
[1746129006094,0.2737029,96584.0,96583.0,0.2070012]
[1746129006294,0.2747029,96584.0,96583.0,0.2070012]
[1746129006505,0.2070075,96582.0,96580.0,0.0324]
[1746129006696,0.0517536,96578.0,96573.0,0.3608]
[1746129006901,0.2070182,96576.0,96575.0,0.0325]
[1746129007201,0.2070182,96576.0,96575.0,0.2395204]
[1746129007404,0.2693182,96576.0,96575.0,0.2395204]
[1746129007710,0.3015182,96576.0,96575.0,0.2395204]
[1746129008316,0.3015182,96576.0,96575.0,0.0325]
[1746129008707,0.3015182,96576.0,96575.0,0.0335]
[1746129009402,0.3015182,96576.0,96575.0,0.0345]
[1746129011416,0.3015182,96576.0,96575.0,0.09762]
[1746129014608,0.0945,96576.0,96575.0,0.3046404]
[1746129014817,0.3015182,96576.0,96575.0,0.3046404]
[1746129015517,0.0623,96576.0,96575.0,0.3046404]
[1746129016108,0.2693182,96576.0,96575.0,0.3046404]
[1746129016416,0.0623,96576.0,96575.0,0.3046404]
[1746129016621,0.2693182,96576.0,96575.0,0.3046404]
[1746129016920,0.2693182,96576.0,96575.0,0.3036404]
[1746129017216,0.2693182,96576.0,96575.0,0.06712]
[1746129017810,0.2693182,96576.0,96575.0,0.2741404]
[1746129019415,0.2693182,96576.0,96575.0,0.27556116]
[1746129020822,0.2693182,96576.0,96575.0,0.06854076]
[1746129021506,0.2693182,96576.0,96575.0,0.27556116]
[1746129021707,0.2693182,96576.0,96575.0,0.06854076]
[1746129022813,0.2693182,96576.0,96575.0,0.00542076]
[1746129025425,0.2693182,96576.0,96575.0,0.00549792]
[1746129029028,0.6301182,96576.0,96575.0,0.00549792]
[1746129030631,0.2070311,96570.0,96569.0,0.23110612]
[1746129031228,0.22702335,96570.0,96569.0,0.23110612]
[1746129031533,0.2388311,96570.0,96569.0,0.23110612]
[1746129031725,0.2713311,96570.0,96569.0,0.23410612]
[1746129032134,0.2713311,96570.0,96569.0,0.06652]
[1746129032432,0.2713311,96570.0,96569.0,0.06852]
[1746129032833,0.2713311,96570.0,96569.0,0.09952]
[1746129033333,0.2713311,96570.0,96569.0,0.06852]
[1746129033533,0.25839765,96570.0,96569.0,0.06852]
[1746129033733,0.27813625,96570.0,96569.0,0.06852]
[1746129034533,0.27813625,96570.0,96569.0,0.005]
[1746129038841,0.2070547,96559.0,96547.0,0.0316]
[1746129039043,0.2070783,96548.0,96547.0,0.0316]
[1746129039543,0.2070783,96548.0,96547.0,0.2386804]
[1746129039932,0.2709783,96548.0,96547.0,0.2386804]
[1746129040836,0.0639,96548.0,96547.0,0.2386804]
[1746129041236,0.0639,96548.0,96547.0,0.2456804]
[1746129042047,0.0639,96548.0,96547.0,0.2516804]
[1746129042647,0.0639,96548.0,96547.0,0.25961131]
[1746129043043,0.0639,96548.0,96547.0,0.25261131]
[1746129044948,0.0639,96548.0,96547.0,0.28351131]
[1746129046355,0.2709783,96548.0,96547.0,0.07643091]
[1746129046650,0.2709783,96548.0,96547.0,0.28351131]
[1746129047345,0.0639,96548.0,96547.0,0.28351131]
[1746129048253,0.2709783,96548.0,96547.0,0.07643091]
[1746129048648,0.0639,96548.0,96547.0,0.28351131]
[1746129048848,0.0311,96548.0,96547.0,0.31481131]
[1746129055155,0.063,96548.0,96547.0,0.31481131]
[1746129056455,0.2700783,96548.0,96547.0,0.31481131]
[1746129057155,0.2700783,96548.0,96547.0,0.10773091]
[1746129057547,0.2700783,96548.0,96547.0,0.07613091]
[1746129058358,0.2700783,96548.0,96547.0,0.01393091]
[1746129061859,0.2070869,96545.0,96543.0,0.033]
[1746129062065,0.2705869,96544.0,96543.0,0.240089]
[1746129062848,0.2705869,96544.0,96543.0,0.033]
[1746129063157,0.2705869,96544.0,96543.0,0.038]
[1746129064058,0.2705869,96544.0,96543.0,0.042]
[1746129065049,0.2705869,96544.0,96543.0,0.249089]
[1746129065657,0.2705869,96544.0,96543.0,0.25687639]
[1746129069058,0.2705869,96544.0,96543.0,0.04978739]
[1746129070156,0.207104,96536.0,96535.0,0.06332]
[1746129070352,0.2071104,96533.0,96532.0,0.00948719]
[1746129070558,0.2071255,96526.0,96519.0,0.06332]
[1746129070859,0.5679255,96526.0,96519.0,0.06332]
[1746129071057,0.5679255,96526.0,96510.0,0.12213993]
[1746129071562,0.5679255,96526.0,96512.0,0.0301]
[1746129072061,0.5679255,96526.0,96512.0,0.0609]
[1746129072261,0.5679255,96526.0,96525.0,0.00255348]
[1746129073353,0.5679255,96526.0,96525.0,0.01033672]
[1746129081466,0.5679255,96526.0,96482.0,0.3608]
[1746129081467,0.4644,96526.0,96482.0,0.3608]
[1746129081666,0.5679856,96498.0,96495.0,0.00155426]
[1746129082567,0.56807631,96498.0,96495.0,0.00155426]
[1746129082763,0.56807631,96498.0,96497.0,0.01229808]
[1746129083071,0.67170432,96498.0,96497.0,0.01229808]
[1746129083267,0.2071899,96496.0,96495.0,0.00155426]
[1746129084564,0.22523646,96496.0,96495.0,0.00255426]
[1746129087269,0.22523646,96496.0,96469.0,1.5407098]
[1746129087270,0.48247856,96496.0,96469.0,1.5407098]
[1746129087571,0.2072328,96476.0,96475.0,0.065]
[1746129088369,0.2685328,96476.0,96475.0,0.065]
[1746129088568,0.2685328,96476.0,96475.0,0.0971]
[1746129088972,0.6293328,96476.0,96475.0,0.0971]
[1746129089183,0.2685328,96476.0,96475.0,0.1011]
[1746129089975,0.2685328,96476.0,96475.0,0.1061]
[1746129092180,0.2685328,96476.0,96475.0,0.1001]
[1746129094077,0.2377328,96476.0,96475.0,0.1001]
[1746129095483,0.2387328,96476.0,96475.0,0.0981]
[1746129097284,0.2397328,96476.0,96475.0,0.0971]
[1746129100285,0.002,96476.0,96475.0,0.304335]
[1746129100483,0.2092328,96476.0,96475.0,0.304335]
[1746129101173,0.2092328,96476.0,96475.0,0.0971]
[1746129101678,0.2082328,96476.0,96475.0,0.0971]
[1746129101873,0.2072328,96476.0,96475.0,0.0991]
[1746129102385,0.2082328,96476.0,96475.0,0.0981]
[1746129102587,0.2092328,96476.0,96475.0,0.0971]
[1746129120299,0.002,96476.0,96475.0,0.665135]
[1746129120599,0.2092328,96476.0,96475.0,0.665135]
[1746129120999,0.2092328,96476.0,96475.0,0.4579]
[1746129122800,0.2092328,96476.0,96475.0,0.4258]
[1746129122990,0.2092328,96476.0,96475.0,0.3608]
[1746129123186,0.2392328,96476.0,96475.0,0.3608]
[1746129133009,0.2092328,96476.0,96475.0,0.3608]
[1746129134002,0.2092328,96476.0,96475.0,0.3933]
[1746129139228,0.2092328,96476.0,96475.0,0.3608]
[1746129145316,0.2092328,96476.0,96475.0,0.568035]
[1746129145729,0.2092328,96476.0,96475.0,0.632835]
[1746129145930,0.2092328,96476.0,96475.0,0.4256]
[1746129147533,0.2092328,96476.0,96475.0,0.632835]
[1746129147828,0.002,96476.0,96475.0,0.632835]
[1746129148028,0.2071961,96496.0,96495.0,0.207192]
[1746129148229,0.20727631,96498.0,96497.0,0.2071877]
[1746129148634,9.071e-05,96498.0,96497.0,0.2071877]
[1746129148829,9.071e-05,96498.0,96497.0,0.2723877]
[1746129149530,0.0517895,96511.0,96510.0,0.207154]
[1746129149731,0.2589525,96511.0,96510.0,0.207154]
[1746129150035,0.207162,96509.0,96508.0,0.6320627]
[1746129152437,0.214162,96509.0,96508.0,0.6330627]
[1746129153136,0.221162,96509.0,96508.0,0.6340627]
[1746129155738,0.221162,96509.0,96508.0,0.4269]
[1746129156037,0.221162,96509.0,96508.0,0.6340641]
[1746129156742,0.014,96509.0,96508.0,0.6340641]
[1746129157033,0.0517769,96535.0,96514.0,0.2071512]
[1746129157034,0.01680164,96520.0,96514.0,0.2071512]
[1746129157335,0.0517769,96535.0,96514.0,0.2071512]
[1746129157336,0.0329,96524.0,96514.0,0.2071512]
[1746129157528,0.2589195,96525.0,96524.0,0.2071224]
[1746129157728,0.2589195,96525.0,96524.0,0.5679224]
[1746129158136,0.2589195,96525.0,96524.0,0.6317224]
[1746129158924,0.2400208,96532.0,96531.0,0.2071147]
[1746129159125,0.0517754,96537.0,96534.0,0.207104]
[1746129159335,0.0517754,96537.0,96536.0,0.3608]
[1746129159732,0.0517754,96537.0,96536.0,0.3919]
[1746129160135,0.0577754,96537.0,96536.0,0.3919]
[1746129160337,0.2070907,96543.0,96542.0,0.2588592]
[1746129161340,0.2070907,96543.0,96542.0,0.2070869]
[1746129162545,0.2110907,96543.0,96542.0,0.2070869]
[1746129162744,0.2130907,96543.0,96542.0,0.2070869]
[1746129163446,0.006,96543.0,96542.0,0.2070869]
[1746129163837,0.0015,96550.0,96549.0,0.2070761]
[1746129164142,0.208574,96550.0,96549.0,0.5678761]
[1746129165342,0.213574,96550.0,96549.0,0.6338761]
[1746129166049,0.214574,96550.0,96549.0,0.6338761]
[1746129169049,0.214574,96550.0,96549.0,0.4268]
[1746129169243,0.214574,96550.0,96549.0,0.6338761]
[1746129171944,0.214574,96550.0,96549.0,0.4268]
[1746129172650,0.214574,96550.0,96549.0,0.6338761]
[1746129173150,0.214574,96550.0,96549.0,0.4268]
[1746129174653,0.214574,96550.0,96549.0,0.48992]
[1746129177055,0.247874,96550.0,96549.0,0.45712]
[1746129177257,0.247874,96550.0,96549.0,0.42392]
[1746129177755,0.280474,96550.0,96549.0,0.42392]
[1746129178957,0.280474,96550.0,96549.0,0.06312]
[1746129179162,0.207089,96543.0,96542.0,0.2070911]
[1746129179653,0.2070933,96541.0,96540.0,0.2588675]
[1746129180251,0.0332,96542.0,96541.0,0.2070933]
[1746129180856,0.0332,96542.0,96541.0,0.2402933]
[1746129182056,0.2422911,96542.0,96541.0,0.2402933]
[1746129182357,0.0352,96542.0,96541.0,0.2402933]
[1746129183056,0.0362,96542.0,96541.0,0.2402933]
[1746129183655,0.003,96542.0,96541.0,0.35802397]
[1746129186048,0.0332,96542.0,96541.0,0.35802397]
[1746129187461,0.2402911,96542.0,96541.0,0.35802397]
[1746129187963,0.2070954,96540.0,96539.0,0.3608]
[1746129188553,0.2070954,96540.0,96539.0,0.5678976]
[1746129188954,0.2070954,96540.0,96539.0,0.3608]
[1746129189355,0.2100954,96540.0,96539.0,0.3608]
[1746129190064,0.2713954,96540.0,96539.0,0.3608]
[1746129190363,0.2713954,96540.0,96539.0,0.5678976]
[1746129192564,0.2713954,96540.0,96539.0,0.6310176]
[1746129197155,0.2713954,96540.0,96539.0,0.6637176]
[1746129197464,0.0643,96540.0,96539.0,0.6637176]
[1746129197669,0.01536184,96549.0,96539.0,0.6637176]
[1746129197670,0.2070332,96571.0,96570.0,0.207029]
[1746129197864,0.2384234,96575.0,96574.0,0.2070225]
[1746129198168,0.2384204,96575.0,96574.0,0.5678225]
[1746129198766,0.0314,96575.0,96574.0,0.5678225]
[1746129198969,0.0646,96575.0,96574.0,0.6004225]
[1746129199169,0.0015,96585.0,96581.0,0.0517517]
[1746129199470,0.0015,96585.0,96584.0,0.5678011]
[1746129200369,0.2084989,96585.0,96584.0,0.3608]
[1746129200585,0.2416989,96585.0,96584.0,0.3608]
[1746129201165,0.2416989,96585.0,96584.0,0.5678011]
[1746129201970,0.2416989,96585.0,96584.0,0.5688011]
[1746129207376,0.2416989,96585.0,96584.0,0.57638805]
[1746129209066,0.2416989,96585.0,96584.0,0.57838805]
[1746129210373,0.2416989,96585.0,96584.0,0.58038805]
[1746129213573,0.0347,96585.0,96584.0,0.58038805]
[1746129213966,0.2416989,96585.0,96584.0,0.58038805]
[1746129214272,0.2717989,96585.0,96584.0,0.58038805]
[1746129214770,0.2717989,96585.0,96584.0,0.01258695]
[1746129214968,0.9861349,96585.0,96584.0,5e-08]
[1746129216272,0.9881349,96585.0,96584.0,5e-08]
[1746129217971,0.2070225,96574.0,96573.0,0.00785672]
[1746129218272,0.2070332,96569.0,96568.0,0.5678349]
[1746129218575,0.2070332,96569.0,96568.0,0.3608]
[1746129219267,0.2070332,96569.0,96568.0,0.5678354]
[1746129219462,0.2395332,96569.0,96568.0,0.5678354]
[1746129220479,0.2070167,96577.0,96576.0,0.2070182]
[1746129220771,0.2070167,96577.0,96576.0,0.5678182]
[1746129221876,0.2070167,96577.0,96576.0,0.5688182]
[1746129222272,0.2070167,96577.0,96576.0,0.5708182]
[1746129222575,0.2070167,96577.0,96576.0,0.5738182]
[1746129224971,0.2386167,96577.0,96576.0,0.5738182]
[1746129228184,0.0316,96577.0,96576.0,0.5738182]
[1746129228376,0.2386161,96577.0,96576.0,0.5738182]
[1746129228977,0.2386161,96577.0,96576.0,0.3668]
[1746129229284,0.2386161,96577.0,96576.0,0.006]
[1746129230775,0.2386161,96577.0,96576.0,0.002]
[1746129231870,0.2386161,96577.0,96576.0,0.001]
[1746129233483,0.2070311,96570.0,96569.0,0.0311]
[1746129234681,0.2691311,96570.0,96569.0,0.0351]
[1746129234977,0.2691311,96570.0,96569.0,0.0331]
[1746129235180,0.0316,96570.0,96569.0,0.2421332]
[1746129235384,0.2375145,96578.0,96577.0,0.2070161]
[1746129235582,0.2375145,96578.0,96577.0,0.5678161]
[1746129235785,0.2375145,96578.0,96577.0,0.3608]
[1746129235987,0.2375145,96578.0,96577.0,0.3923]
[1746129236485,0.2375145,96578.0,96577.0,0.0315]
[1746129237987,0.2375145,96578.0,96577.0,0.0325]
[1746129239087,0.22458233,96578.0,96577.0,0.0325]
[1746129239386,0.22458233,96578.0,96577.0,0.0632]
[1746129239575,0.22458233,96578.0,96577.0,0.001]
[1746129239772,0.2070182,96576.0,96575.0,0.0308]
[1746129239977,0.2070182,96576.0,96575.0,0.0615]
[1746129240888,0.2070182,96576.0,96575.0,0.0645]
[1746129241281,0.2070182,96576.0,96575.0,0.0665]
[1746129242088,0.2070182,96576.0,96575.0,0.2735204]
[1746129242394,0.2085042,96585.0,96579.0,0.0517525]
[1746129242578,0.2587586,96583.0,96582.0,0.2070042]
[1746129242779,0.2070041,96583.0,96582.0,0.2070026]
[1746129243181,0.2070041,96583.0,96582.0,0.2680026]
[1746129243587,0.2070041,96583.0,96582.0,0.6288026]
[1746129243982,0.2070041,96583.0,96582.0,0.6298026]
[1746129244189,0.2069909,96589.0,96588.0,0.2587358]
[1746129244490,0.2069909,96589.0,96588.0,0.2069882]
[1746129244688,0.2378909,96589.0,96588.0,0.2069882]
[1746129245088,0.2069909,96589.0,96588.0,0.2069882]
[1746129246687,0.206982,96595.0,96594.0,0.2587187]
[1746129246880,0.206982,96595.0,96594.0,0.206974]
[1746129247486,0.2069818,96593.0,96592.0,0.5677828]
[1746129247686,0.1,96600.0,96599.0,0.2069689]
[1746129250291,0.103,96600.0,96599.0,0.2069689]
[1746129251784,0.208424,96620.0,96619.0,0.2069261]
[1746129251985,0.208424,96620.0,96619.0,0.5677261]
[1746129252188,0.208424,96620.0,96619.0,0.3608]
[1746129252681,0.208424,96620.0,96619.0,0.5677261]
[1746129252887,0.215424,96620.0,96619.0,0.5677261]
[1746129253289,0.215424,96620.0,96619.0,0.3608]
[1746129253790,0.0085,96620.0,96619.0,0.5677261]
[1746129254795,0.20249123,96624.0,96623.0,0.2069175]
[1746129255000,0.2069218,96622.0,96621.0,0.206921]
[1746129257094,0.2069218,96622.0,96621.0,0.239021]
[1746129258096,0.2386197,96623.0,96622.0,0.2069197]
[1746129258297,0.2701197,96623.0,96622.0,0.2390197]
[1746129259193,0.2701197,96623.0,96622.0,0.2430197]